bitfinex/quotes_BTCUSD_20251012
["timestamp","ask_amount","ask_price","bid_price","bid_amount"]
[1760282375450,0.24147953,113900.0,113890.0,0.17560804]
[1760282375622,0.24147953,113900.0,113890.0,0.52854756]
[1760282375851,0.24838438,113900.0,113890.0,0.52854756]
[1760282376478,0.24838438,113900.0,113890.0,0.92854756]
[1760282377754,0.24838438,113900.0,113890.0,0.92954756]
[1760282378004,0.00941523,113920.0,113890.0,0.52954756]
[1760282378200,0.00037526,113930.0,113920.0,0.64056177]
[1760282378411,0.00052464,113930.0,113920.0,0.43890179]
[1760282378609,0.00052464,113930.0,113920.0,0.83890179]
[1760282378809,0.00052464,113930.0,113920.0,0.92843131]
[1760282379221,0.00052464,113930.0,113920.0,0.75286952]
[1760282379429,0.00052464,113930.0,113920.0,0.26334]
[1760282379624,0.00052464,113930.0,113920.0,0.44090179]
[1760282380014,0.00052464,113930.0,113920.0,0.26534]
[1760282380218,0.17607102,113930.0,113920.0,0.26534]
[1760282380612,0.04563464,113930.0,113920.0,0.26534]
[1760282380824,0.22118102,113930.0,113920.0,0.26334]
[1760282381040,0.32036102,113930.0,113920.0,0.26434]
[1760282381640,0.66036102,113930.0,113920.0,0.16334]
[1760282382078,0.17560804,113890.0,113880.0,0.07162362]
[1760282382496,0.2207117,113900.0,113870.0,0.24480818]
[1760282382701,0.17560837,113890.0,113870.0,0.24480818]
[1760282383141,0.17560044,113900.0,113880.0,0.0111595]
[1760282383575,0.17560804,113890.0,113870.0,0.0422]
[1760282383789,0.17565207,113870.0,113850.0,0.5]
[1760282384011,0.22333431,113860.0,113850.0,0.50014935]
[1760282384224,0.32093431,113860.0,113850.0,0.50790089]
[1760282384636,0.32093431,113860.0,113850.0,0.50014935]
[1760282385772,0.32093431,113860.0,113850.0,0.50114935]
[1760282386561,0.22333431,113860.0,113850.0,0.50114935]
[1760282386791,0.20060803,113890.0,113850.0,0.50114935]
[1760282386792,0.17560804,113890.0,113850.0,0.50114935]
[1760282386965,0.17562364,113880.0,113850.0,0.64581891]
[1760282387238,0.32092225,113870.0,113850.0,0.47014935]
[1760282387464,0.27325431,113860.0,113850.0,0.47014935]
[1760282389256,0.04768,113870.0,113850.0,0.64581909]
[1760282389487,0.04768,113870.0,113860.0,0.17829018]
[1760282389702,0.22329239,113890.0,113870.0,0.17563785]
[1760282389906,0.27322455,113880.0,113850.0,0.73534861]
[1760282390115,0.32967279,113890.0,113870.0,0.17563848]
[1760282390344,0.23206007,113900.0,113880.0,0.17562346]
[1760282390549,0.22327707,113900.0,113870.0,0.20260848]
[1760282390761,0.22327707,113900.0,113880.0,0.17730211]
[1760282390981,0.04824632,113910.0,113890.0,0.17560804]
[1760282391206,0.22382388,113910.0,113880.0,0.4]
[1760282391419,0.0976,113900.0,113880.0,0.57562294]
[1760282391639,0.17559727,113900.0,113880.0,0.57562294]
[1760282391855,0.17560804,113890.0,113880.0,0.4]
[1760282392091,0.17560862,113890.0,113870.0,0.20260802]
[1760282392297,0.2819769,113900.0,113880.0,0.17562189]
[1760282392527,0.2819769,113900.0,113870.0,0.4]
[1760282392528,0.17562346,113880.0,113870.0,0.4]
[1760282392746,0.32966844,113890.0,113860.0,0.24727776]
[1760282393071,0.18438844,113890.0,113870.0,0.1756387]
[1760282393277,0.17562346,113880.0,113860.0,0.24727776]
[1760282393483,0.1843769,113900.0,113880.0,0.17562346]
[1760282393707,0.23260274,113910.0,113890.0,0.17623492]
[1760282393909,0.04839564,113910.0,113890.0,0.17560804]
[1760282394115,0.17629285,113910.0,113900.0,0.00270263]
[1760282394317,0.00071564,113910.0,113890.0,0.02697]
[1760282394514,0.17559262,113900.0,113870.0,0.21139082]
[1760282394714,0.17559262,113900.0,113880.0,0.17562268]
[1760282394922,0.17559262,113900.0,113880.0,0.57562268]
[1760282395152,0.17559262,113900.0,113880.0,0.57712514]
[1760282395355,0.17559262,113900.0,113880.0,0.57562268]
[1760282395561,0.00071564,113910.0,113900.0,0.17559262]
[1760282395764,0.00071564,113910.0,113890.0,0.17560804]
[1760282395978,0.00071564,113910.0,113880.0,0.58440385]
[1760282396185,0.22397331,113910.0,113890.0,0.17560754]
[1760282396731,0.33035217,113910.0,113880.0,0.57562268]
[1760282397009,0.04839564,113910.0,113900.0,0.17559262]
[1760282397179,0.22397285,113910.0,113890.0,0.17560593]
[1760282397802,0.00071564,113910.0,113900.0,0.17559262]
[1760282398899,0.00071564,113910.0,113880.0,0.57562268]
[1760282399103,0.18434333,113920.0,113890.0,0.17560469]
[1760282399256,0.17557818,113910.0,113890.0,0.17575401]
[1760282399880,0.17557818,113910.0,113890.0,0.00014932]
[1760282400308,0.18434035,113920.0,113890.0,0.20018358]
[1760282400508,0.23008035,113920.0,113890.0,0.20111948]
[1760282400693,0.22131765,113910.0,113890.0,0.2011184]
[1760282400890,0.04574,113920.0,113900.0,0.17559262]
[1760282401076,0.22980945,113930.0,113900.0,0.30071262]
[1760282401276,0.04548526,113930.0,113910.0,0.17557721]
[1760282401479,0.00037526,113930.0,113920.0,0.32854197]
[1760282401790,0.00037526,113930.0,113920.0,0.31977179]
[1760282402117,0.00037526,113930.0,113920.0,0.22162179]
[1760282402312,0.00037526,113930.0,113920.0,0.31977179]
[1760282402685,0.00037526,113930.0,113920.0,0.22162179]
[1760282403422,0.32071332,113930.0,113900.0,0.20255926]
[1760282403621,0.32070238,113930.0,113910.0,0.17557717]
[1760282403822,0.32070238,113930.0,113900.0,0.20255926]
[1760282403823,0.32947969,113930.0,113900.0,0.20255926]
[1760282404024,0.04611526,113930.0,113920.0,0.17656179]
[1760282404234,0.32070164,113930.0,113920.0,0.001]
[1760282404588,0.17557817,113910.0,113890.0,0.20018628]
[1760282404790,0.27463262,113900.0,113890.0,0.00014932]
[1760282405012,0.61463262,113900.0,113890.0,0.00014932]
[1760282405214,0.17563888,113870.0,113850.0,0.47]
[1760282405415,0.32043431,113860.0,113850.0,0.47014935]
[1760282406120,0.66043431,113860.0,113850.0,0.42673935]
[1760282406327,0.17574499,113810.0,113780.0,0.02697]
[1760282406496,0.18452586,113820.0,113800.0,0.17574687]
[1760282406709,0.32872817,113850.0,113810.0,0.23287547]
[1760282406913,0.02499999,113870.0,113840.0,0.1756802]
[1760282406914,0.28296862,113870.0,113840.0,0.1756802]
[1760282407116,0.28296862,113870.0,113810.0,0.32029063]
[1760282407117,0.04574,113850.0,113810.0,0.22197454]
[1760282407320,0.04574,113850.0,113830.0,0.17569731]
[1760282407321,0.31991098,113850.0,113830.0,0.17569731]
[1760282407541,0.14424,113850.0,113830.0,0.17569731]
[1760282407758,0.31991037,113850.0,113840.0,0.00433618]
[1760282407965,0.04574,113850.0,113840.0,0.00433618]
[1760282408162,0.22140974,113850.0,113840.0,0.0048343]
[1760282408393,0.31990974,113850.0,113840.0,0.0048343]
[1760282408688,5.68490973,113850.0,113840.0,0.0048343]
[1760282408840,0.65990974,113850.0,113840.0,0.0048343]
[1760282409041,0.65990974,113850.0,113770.0,0.3224541]
[1760282409042,0.18454404,113810.0,113770.0,0.3224541]
[1760282409272,0.1757646,113790.0,113770.0,0.0001495]
[1760282409593,0.17576417,113790.0,113770.0,0.0001495]
[1760282409804,0.27382417,113790.0,113770.0,0.0001495]
[1760282410020,0.22149138,113800.0,113780.0,0.17917983]
[1760282410223,0.18454404,113810.0,113790.0,0.17576236]
[1760282410433,0.17577051,113790.0,113770.0,0.0001495]
[1760282410637,0.17577781,113780.0,113770.0,0.0011495]
[1760282410872,0.09806,113780.0,113770.0,0.0011495]
[1760282411075,0.17576254,113790.0,113770.0,0.00284783]
[1760282411293,0.17576254,113790.0,113770.0,0.17594233]
[1760282411702,0.31954832,113800.0,113780.0,0.17577741]
[1760282411913,0.07162362,113810.0,113800.0,0.17574692]
[1760282412120,0.39994199,113810.0,113780.0,0.17577741]
[1760282412322,0.17575016,113800.0,113780.0,0.17577741]
[1760282412530,0.32831837,113810.0,113790.0,0.17576188]
[1760282412742,0.27380727,113800.0,113770.0,0.0486995]
[1760282412946,0.27380727,113800.0,113770.0,0.0001495]
[1760282412947,0.17577781,113780.0,113770.0,0.0001495]
[1760282413151,0.17577178,113790.0,113770.0,0.0011495]
[1760282413358,0.27383178,113790.0,113770.0,0.0011495]
[1760282413567,0.17577781,113780.0,113770.0,0.0001495]
[1760282413774,0.27383781,113780.0,113770.0,0.0001495]
[1760282413986,0.17577781,113780.0,113770.0,0.0001495]
[1760282414143,0.27383178,113790.0,113770.0,0.1788967]
[1760282414351,0.09806,113790.0,113770.0,0.17594276]
[1760282414525,0.18453461,113800.0,113780.0,0.17577781]
[1760282414727,0.32831837,113810.0,113790.0,0.17576236]
[1760282414989,0.3195317,113810.0,113790.0,0.17576236]
[1760282415192,0.22147148,113810.0,113790.0,0.17576236]
[1760282415425,0.22147148,113810.0,113790.0,0.00283544]
[1760282415630,0.31953148,113810.0,113790.0,0.17576189]
[1760282415830,0.32831805,113810.0,113790.0,0.17576236]
[1760282416184,0.23025805,113810.0,113790.0,0.17576236]
[1760282416558,0.17574808,113800.0,113770.0,0.32264276]
[1760282416767,0.32831805,113810.0,113790.0,0.17576214]
[1760282416967,0.18451805,113810.0,113790.0,0.17576106]
[1760282417177,0.17573148,113810.0,113790.0,0.17576106]
[1760282417386,0.27379148,113810.0,113790.0,0.17576106]
[1760282417650,0.09806,113810.0,113790.0,0.17576106]
[1760282417814,0.22145795,113820.0,113800.0,0.17574662]
[1760282418014,0.28261905,113830.0,113810.0,0.17573148]
[1760282418216,0.18455905,113830.0,113810.0,0.17573148]
[1760282418667,0.30188505,113840.0,113820.0,0.17571604]
[1760282418894,0.1757006,113830.0,113810.0,0.17573148]
[1760282419101,0.04574,113840.0,113820.0,0.17744333]
[1760282419306,0.0466764,113850.0,113830.0,0.1747006]
[1760282419431,0.17568517,113840.0,113820.0,0.18450184]
[1760282419636,0.32920108,113850.0,113830.0,0.1757006]
[1760282419840,0.0009364,113850.0,113830.0,0.2026706]
[1760282420046,0.0009364,113850.0,113840.0,0.17568517]
[1760282420453,0.0009364,113850.0,113840.0,0.27383517]
[1760282420888,0.0009364,113850.0,113840.0,0.17568517]
[1760282421124,0.0009364,113850.0,113830.0,0.001]
[1760282421336,0.27418517,113840.0,113830.0,0.001]
[1760282421932,0.17568517,113840.0,113830.0,0.001]
[1760282422151,0.22189614,113850.0,113830.0,0.001]
[1760282422296,0.0462264,113850.0,113840.0,0.17568517]
[1760282422498,0.32917962,113850.0,113810.0,0.17587555]
[1760282422722,0.17570744,113830.0,113810.0,0.17588029]
[1760282422960,0.17570744,113830.0,113810.0,0.17587979]
[1760282423442,0.1757006,113830.0,113810.0,0.17587979]
[1760282423670,0.2214406,113830.0,113810.0,0.17587979]
[1760282423897,0.18538962,113850.0,113820.0,0.27386604]
[1760282424118,0.23112962,113850.0,113810.0,0.17587979]
[1760282424338,0.1757006,113830.0,113810.0,0.17587979]
[1760282424579,0.27377604,113820.0,113810.0,0.0001495]
[1760282425346,0.17571604,113820.0,113810.0,0.0001495]
[1760282425587,0.17570075,113830.0,113810.0,0.17688098]
[1760282426006,0.18448028,113840.0,113820.0,0.17571604]
[1760282426425,0.0466764,113850.0,113830.0,0.17626749]
[1760282426627,0.17660614,113850.0,113830.0,0.17626749]
[1760282426827,0.22234614,113850.0,113830.0,0.17626749]
[1760282427034,0.32040614,113850.0,113830.0,0.17626749]
[1760282427240,0.17568517,113840.0,113830.0,0.00056689]
[1760282427460,0.27374517,113840.0,113830.0,0.00056689]
[1760282427897,0.22234614,113850.0,113830.0,0.17626749]
[1760282428116,0.17568517,113840.0,113830.0,0.00056689]
[1760282428376,0.27374517,113840.0,113830.0,0.00056689]
[1760282430296,0.17568517,113840.0,113830.0,0.00056689]
[1760282430497,0.51571604,113820.0,113810.0,0.0001495]
[1760282430705,0.17579326,113770.0,113760.0,0.0422]
[1760282430925,0.31695326,113770.0,113760.0,0.04234958]
[1760282431323,0.31695326,113770.0,113700.0,0.3030914]
[1760282431324,0.17588602,113710.0,113680.0,0.15086334]
[1760282431522,0.04677,113730.0,113690.0,0.14199]
[1760282431722,0.14011,113750.0,113720.0,0.17586671]
[1760282431985,0.17582832,113750.0,113730.0,0.17584358]
[1760282432198,0.14944966,113770.0,113730.0,0.33848525]
[1760282432353,0.14066,113770.0,113740.0,0.17583954]
[1760282432553,0.22233829,113780.0,113750.0,0.17581441]
[1760282432554,0.23112718,113780.0,113750.0,0.17581441]
[1760282432782,0.1757938,113770.0,113750.0,0.17581441]
[1760282432979,0.17580883,113760.0,113740.0,0.0422]
[1760282433179,0.2692138,113770.0,113740.0,0.0422]
[1760282433180,0.27800346,113770.0,113740.0,0.0422]
[1760282433473,0.17580899,113760.0,113740.0,0.21803752]
[1760282433677,0.17592728,113780.0,113760.0,0.17580798]
[1760282433881,0.18471617,113780.0,113750.0,0.29901417]
[1760282434184,0.17579326,113770.0,113750.0,0.20397417]
[1760282434586,0.17579326,113770.0,113760.0,0.17580872]
[1760282434915,0.17582417,113750.0,113740.0,0.0422]
[1760282435321,0.31579417,113750.0,113740.0,0.0422]
[1760282436049,0.65579417,113750.0,113740.0,0.04730626]
[1760282436823,0.65579417,113750.0,113740.0,0.04830626]
[1760282437025,5.78079415,113750.0,113740.0,1e-08]
[1760282437264,5.65579417,113750.0,113740.0,1e-08]
[1760282438019,0.18464707,113740.0,113720.0,0.17587055]
[1760282438228,0.22259417,113750.0,113730.0,0.17584725]
[1760282438428,0.18459915,113760.0,113730.0,0.17584725]
[1760282438822,0.00093747,113750.0,113740.0,0.17583963]
[1760282439022,0.00093747,113750.0,113740.0,0.27087963]
[1760282439249,0.00108655,113750.0,113730.0,0.04808764]
[1760282439459,0.00108655,113750.0,113740.0,0.17583963]
[1760282439867,0.00108655,113750.0,113740.0,0.27087963]
[1760282440298,0.00108655,113750.0,113740.0,0.17583963]
[1760282440464,0.00108655,113750.0,113740.0,0.27087963]
[1760282442548,0.00108655,113750.0,113740.0,0.36040915]
[1760282443462,0.29418008,113810.0,113800.0,0.17574692]
[1760282443463,0.07162362,113810.0,113800.0,0.17574692]
[1760282443696,0.07162362,113790.0,113780.0,0.21801781]
[1760282443963,0.19915236,113790.0,113780.0,0.04224]
[1760282444792,0.02339,113790.0,113780.0,0.04224]
[1760282445010,0.02339,113790.0,113780.0,0.21801781]
[1760282445214,0.02339,113790.0,113780.0,0.04224]
[1760282445396,0.03891952,113810.0,113790.0,0.17575748]
[1760282445616,0.21465215,113810.0,113790.0,0.17575748]
[1760282445823,0.21465215,113810.0,113800.0,0.17574692]
[1760282445824,0.03891952,113810.0,113800.0,0.17574692]
[1760282446153,0.214651,113810.0,113790.0,0.17575748]
[1760282446360,0.03891952,113810.0,113800.0,0.17574692]
[1760282446718,0.21465107,113810.0,113790.0,0.17575748]
[1760282447140,0.03891952,113810.0,113800.0,0.17574692]
[1760282447362,0.214651,113810.0,113790.0,0.17575748]
[1760282447544,0.214651,113810.0,113790.0,0.17175748]
[1760282447746,0.17574692,113800.0,113790.0,0.001]
[1760282447902,0.17574692,113800.0,113780.0,0.21801734]
[1760282448300,0.17576236,113790.0,113780.0,0.04224]
[1760282448515,0.19915236,113790.0,113780.0,0.04224]
[1760282449213,0.19915236,113790.0,113780.0,0.04324]
[1760282450120,0.02339,113790.0,113780.0,0.04324]
[1760282450339,0.19915236,113790.0,113780.0,0.04224]
[1760282450745,0.53915236,113790.0,113780.0,0.04324]
[1760282450892,0.56415235,113790.0,113780.0,0.001]
[1760282451090,0.17581904,113760.0,113740.0,0.2483727]
[1760282451292,0.17582417,113750.0,113740.0,0.07256113]
[1760282451497,0.17582417,113750.0,113740.0,0.00093751]
[1760282451498,0.22233417,113750.0,113740.0,0.00093751]
[1760282451711,0.21068964,113750.0,113740.0,0.00093751]
[1760282451912,0.55068964,113750.0,113740.0,0.00093751]
[1760282452316,0.55068964,113750.0,113740.0,0.00193751]
[1760282453596,0.60018964,113750.0,113740.0,0.00093751]
[1760282454013,0.60018964,113750.0,113740.0,0.00193751]
[1760282454443,0.61183417,113750.0,113740.0,0.00193751]
[1760282455520,5.73683415,113750.0,113740.0,1e-08]
[1760282456403,5.75573656,113750.0,113740.0,1e-08]
[1760282457291,0.17587055,113720.0,113710.0,0.04224]
[1760282457520,0.22537055,113720.0,113710.0,0.04273862]
[1760282457953,0.22537055,113720.0,113660.0,0.0723919]
[1760282457954,0.17591696,113690.0,113660.0,0.0723919]
[1760282458175,0.19933585,113680.0,113670.0,0.07162362]
[1760282458376,0.17594791,113670.0,113660.0,0.04238908]
[1760282458585,0.17593352,113680.0,113660.0,0.35477194]
[1760282458832,0.2312228,113690.0,113670.0,0.17594791]
[1760282459031,0.21470244,113680.0,113660.0,0.26348194]
[1760282459278,0.17594791,113670.0,113660.0,0.04238908]
[1760282459486,0.19933791,113670.0,113660.0,0.04238908]
[1760282460320,0.24883791,113670.0,113660.0,0.04238908]
[1760282461003,5.24883791,113670.0,113660.0,0.04238908]
[1760282461231,0.24883791,113670.0,113660.0,0.00014908]
[1760282461892,0.24005327,113670.0,113660.0,0.00014908]
[1760282462098,0.19055327,113670.0,113660.0,0.00014908]
[1760282462512,0.16716327,113670.0,113660.0,0.00014908]
[1760282462688,0.21470244,113680.0,113660.0,0.17611247]
[1760282462907,0.21470719,113680.0,113660.0,0.17611247]
[1760282463110,0.19933791,113670.0,113660.0,0.00014908]
[1760282463340,0.21470719,113680.0,113660.0,0.00014908]
[1760282463562,0.21470244,113680.0,113670.0,0.00397555]
[1760282464010,0.26420244,113680.0,113670.0,0.00397555]
[1760282464208,0.26520244,113680.0,113670.0,0.00397555]
[1760282464420,0.26520244,113680.0,113670.0,1e-08]
[1760282464905,0.26420244,113680.0,113670.0,1e-08]
[1760282465116,0.51594791,113670.0,113660.0,1e-08]
[1760282465329,0.53933791,113670.0,113660.0,1e-08]
[1760282465549,0.58883791,113670.0,113660.0,1e-08]
[1760282465808,0.24883791,113670.0,113660.0,1e-08]
[1760282466010,5.24883791,113670.0,113660.0,1e-08]
[1760282466213,5.74398979,113670.0,113660.0,1e-08]
[1760282466440,5.71383789,113670.0,113660.0,1e-08]
[1760282467281,5.6138379,113670.0,113660.0,1e-08]
[1760282467498,5.71383789,113670.0,113660.0,1e-08]
[1760282467733,5.74398979,113670.0,113660.0,1e-08]
[1760282468426,6.24398978,113670.0,113660.0,1e-08]
[1760282468645,0.17607183,113590.0,113580.0,0.07162362]
[1760282468873,0.26168933,113590.0,113580.0,0.07162362]
[1760282469070,0.17609397,113580.0,113560.0,0.17611389]
[1760282469326,0.21211781,113580.0,113560.0,0.1761147]
[1760282469556,0.03603,113580.0,113570.0,0.17610284]
[1760282469781,0.21219138,113590.0,113570.0,0.17610284]
[1760282470006,0.0361175,113590.0,113580.0,0.17608733]
[1760282470497,0.0361175,113590.0,113560.0,0.1761174]
[1760282470498,0.18489225,113580.0,113560.0,0.1761174]
[1760282470723,0.21218963,113590.0,113560.0,0.23421143]
[1760282470947,0.17608844,113580.0,113570.0,0.00568611]
[1760282471166,0.22099322,113590.0,113570.0,0.18178895]
[1760282471389,0.27049322,113590.0,113580.0,0.001]
[1760282471868,0.1760921,113580.0,113560.0,0.18491143]
[1760282472075,0.22099322,113590.0,113570.0,0.17610284]
[1760282472282,0.17608733,113580.0,113570.0,0.17610284]
[1760282472956,0.0361175,113590.0,113580.0,0.17608733]
[1760282473175,0.21218933,113590.0,113570.0,0.22540284]
[1760282473399,0.17608733,113580.0,113570.0,0.22540284]
[1760282473622,0.17608733,113580.0,113570.0,0.17610284]
[1760282473840,0.21218933,113590.0,113580.0,0.17608733]
[1760282474107,0.26168933,113590.0,113570.0,0.17610284]
[1760282474319,0.21218933,113590.0,113580.0,0.17608733]
[1760282474578,8.75e-05,113590.0,113580.0,0.17608733]
[1760282474814,8.75e-05,113590.0,113580.0,0.31688733]
[1760282475032,8.75e-05,113590.0,113580.0,0.22538733]
[1760282475495,8.75e-05,113590.0,113580.0,0.31688733]
[1760282475700,8.75e-05,113590.0,113580.0,0.34703923]
[1760282476142,8.75e-05,113590.0,113580.0,0.43656875]
[1760282476371,0.07162362,113630.0,113620.0,0.17602534]
[1760282476593,0.07171136,113630.0,113620.0,0.38925724]
[1760282476805,8.774e-05,113630.0,113620.0,0.47878676]
[1760282477023,0.07162362,113660.0,113650.0,0.17597888]
[1760282477251,8.772e-05,113660.0,113650.0,0.74693078]
[1760282477707,8.772e-05,113660.0,113650.0,0.8364603]
[1760282478149,8.772e-05,113660.0,113650.0,1.1764603]
[1760282478382,8.772e-05,113660.0,113650.0,1.27746029]
[1760282478601,0.07162362,113710.0,113700.0,0.17590149]
[1760282478824,0.07212238,113710.0,113700.0,0.17590149]
[1760282479056,0.00049876,113710.0,113700.0,0.31670149]
[1760282479720,0.00049876,113710.0,113700.0,0.17590149]
[1760282479932,0.00049876,113710.0,113700.0,0.26740149]
[1760282480142,0.00049876,113710.0,113700.0,0.17590149]
[1760282480993,0.00049876,113710.0,113700.0,0.31068149]
[1760282481199,0.00049876,113710.0,113700.0,0.34083339]
[1760282481697,0.00049876,113710.0,113700.0,0.43036291]
[1760282481907,0.27013707,113760.0,113730.0,0.17584563]
[1760282482129,0.17586019,113750.0,113730.0,0.43162563]
[1760282482351,0.00340632,113740.0,113730.0,0.48092563]
[1760282483020,0.00340632,113740.0,113730.0,0.57242563]
[1760282483242,0.00014959,113760.0,113750.0,0.17582417]
[1760282483492,0.00014959,113760.0,113750.0,0.48886417]
[1760282483735,0.00014959,113760.0,113750.0,0.26374]
[1760282483984,0.00014959,113760.0,113750.0,0.43956417]
[1760282484653,0.00014959,113760.0,113750.0,0.44056417]
[1760282485302,0.00014959,113760.0,113750.0,0.58136417]
[1760282485546,0.00014959,113760.0,113750.0,0.44056417]
[1760282485750,0.17595831,113760.0,113750.0,0.44056417]
[1760282485962,0.00014959,113760.0,113750.0,0.44056417]
[1760282486835,0.17595831,113760.0,113750.0,0.26474]
[1760282487502,0.17595831,113760.0,113750.0,0.44056417]
[1760282487963,0.00014959,113760.0,113750.0,0.44056417]
[1760282488395,0.00014959,113760.0,113750.0,0.53206417]
[1760282488613,0.00014959,113760.0,113750.0,0.56221607]
[1760282489042,0.00128453,113760.0,113750.0,0.56221607]
[1760282489319,0.00128453,113760.0,113750.0,0.65174559]
[1760282490200,0.00128453,113760.0,113750.0,0.62159369]
[1760282490864,0.00128453,113760.0,113750.0,0.53206417]
[1760282491106,0.00128453,113760.0,113750.0,0.43956417]
[1760282491350,0.00128453,113760.0,113750.0,0.53351417]
[1760282491777,0.00128453,113760.0,113750.0,0.83956417]
[1760282491996,0.17709325,113760.0,113750.0,0.66374]
[1760282492215,0.17709325,113760.0,113750.0,0.26374]
[1760282492432,0.17709325,113760.0,113750.0,0.44056417]
[1760282492433,0.00128453,113760.0,113750.0,0.44056417]
[1760282492649,0.17709325,113760.0,113750.0,0.44056417]
[1760282492858,0.17709325,113760.0,113750.0,0.26374]
[1760282493126,0.22659325,113760.0,113750.0,0.26374]
[1760282493335,0.17709325,113760.0,113750.0,0.44056417]
[1760282493547,0.17709325,113760.0,113750.0,0.26474]
[1760282493979,0.17709325,113760.0,113750.0,0.26374]
[1760282494919,0.51709325,113760.0,113750.0,0.26374]
[1760282495133,0.51583963,113740.0,113730.0,0.0009376]
[1760282495349,5.0,113740.0,113730.0,0.0009376]
[1760282495562,5.22533963,113740.0,113730.0,0.0009376]
[1760282496227,5.22533963,113740.0,113730.0,1e-08]
[1760282496444,5.35033961,113740.0,113730.0,1e-08]
[1760282496696,5.38049151,113740.0,113730.0,1e-08]
[1760282496969,5.3993198,113740.0,113730.0,1e-08]
[1760282497183,5.38049151,113740.0,113730.0,1e-08]
[1760282497417,5.73932267,113740.0,113730.0,1e-08]
[1760282497612,5.74032267,113740.0,113730.0,1e-08]
[1760282498672,5.73932267,113740.0,113730.0,1e-08]
[1760282499072,5.74032267,113740.0,113730.0,1e-08]
[1760282499478,5.73932267,113740.0,113730.0,1e-08]
[1760282499895,5.74032267,113740.0,113730.0,1e-08]
[1760282501283,5.68517078,113740.0,113730.0,1e-08]
[1760282501488,5.22633963,113740.0,113730.0,1e-08]
[1760282501824,0.22633963,113740.0,113730.0,1e-08]
[1760282502116,5.22633963,113740.0,113730.0,1e-08]
[1760282502327,5.22533963,113740.0,113730.0,1e-08]
[1760282502448,5.59033962,113740.0,113730.0,1e-08]
[1760282502653,5.71021558,113740.0,113730.0,1e-08]
[1760282502855,5.61021559,113740.0,113730.0,1e-08]
[1760282503108,5.70921558,113740.0,113730.0,1e-08]
[1760282503485,5.71021558,113740.0,113730.0,1e-08]
[1760282503911,5.70921558,113740.0,113730.0,1e-08]
[1760282504115,5.73936748,113740.0,113730.0,1e-08]
[1760282504314,5.74036748,113740.0,113730.0,1e-08]
[1760282505339,0.50008696,113690.0,113680.0,0.07162362]
[1760282505552,5.20983696,113690.0,113680.0,0.07162362]
[1760282505757,5.25985696,113690.0,113680.0,0.07162362]
[1760282506185,0.17594791,113670.0,113660.0,0.07162362]
[1760282506359,0.17591498,113700.0,113680.0,0.17593244]
[1760282506567,0.17591498,113700.0,113690.0,0.17591696]
[1760282506815,0.17590149,113700.0,113690.0,0.17591696]
[1760282506930,0.18468032,113710.0,113690.0,0.22352696]
[1760282507139,0.03392,113720.0,113690.0,0.3275928]
[1760282507358,0.03392,113720.0,113700.0,0.27117149]
[1760282507359,0.17587091,113720.0,113700.0,0.27117149]
[1760282507560,0.18469759,113730.0,113710.0,0.17588602]
[1760282507763,0.17587055,113720.0,113710.0,0.17588602]
[1760282508209,0.17585509,113730.0,113720.0,0.17587055]
[1760282508424,0.17585509,113730.0,113710.0,0.27115602]
[1760282509262,0.2186067,113750.0,113720.0,0.17587055]
[1760282509588,0.17585509,113730.0,113720.0,0.27114055]
[1760282509800,0.17585509,113730.0,113710.0,0.58468032]
[1760282510013,0.17585509,113730.0,113710.0,0.58568032]
[1760282510193,0.17587055,113720.0,113710.0,0.401]
[1760282510427,0.17587055,113720.0,113710.0,0.17588602]
[1760282510637,0.21009509,113730.0,113720.0,0.17587055]
[1760282510847,0.21009509,113730.0,113720.0,0.001]
[1760282511701,0.25964509,113730.0,113720.0,0.001]
[1760282512126,0.17590149,113700.0,113690.0,0.44761]
[1760282512381,0.17590149,113700.0,113690.0,0.22352696]
[1760282512614,0.17590149,113700.0,113690.0,0.04761]
[1760282512837,0.17590149,113700.0,113690.0,0.22352696]
[1760282513311,0.17593244,113680.0,113660.0,0.29519223]
[1760282513540,0.17594791,113670.0,113660.0,0.29569099]
[1760282513755,0.26828656,113700.0,113670.0,0.17594791]
[1760282513756,0.21878656,113700.0,113670.0,0.17594791]
[1760282513971,0.17591896,113690.0,113680.0,0.04761]
[1760282514413,0.17591896,113690.0,113680.0,0.22354244]
[1760282514835,0.18469656,113700.0,113680.0,0.31881244]
[1760282515277,0.18469361,113710.0,113690.0,0.09527]
[1760282515494,0.17590149,113700.0,113690.0,0.04761]
[1760282515705,0.17591696,113690.0,113680.0,0.1730319]
[1760282515931,0.17591696,113690.0,113680.0,0.04761]
[1760282516141,0.17593244,113680.0,113670.0,0.25370597]
[1760282516377,0.20990244,113680.0,113670.0,0.04761]
[1760282516589,0.17594791,113670.0,113660.0,0.00049876]
[1760282516804,0.17593706,113680.0,113660.0,0.22407215]
[1760282517021,0.5586828,113690.0,113680.0,0.001]
[1760282517257,0.2180138,113690.0,113680.0,0.001]
[1760282517465,0.1840438,113690.0,113680.0,0.001]
[1760282517685,0.2335438,113690.0,113680.0,0.001]
[1760282518310,0.2335438,113690.0,113660.0,0.00049876]
[1760282518311,0.17594791,113670.0,113660.0,0.00049876]
[1760282518733,0.17594791,113670.0,113660.0,0.17746215]
[1760282518946,0.22544791,113670.0,113660.0,0.00149876]
[1760282519151,0.22544791,113670.0,113660.0,0.00049876]
[1760282519361,0.17594791,113670.0,113660.0,0.00049876]
[1760282520089,0.22544791,113670.0,113660.0,0.00049876]
[1760282520310,0.22544791,113670.0,113660.0,0.00149876]
[1760282520759,0.51594791,113670.0,113660.0,0.00149876]
[1760282520985,5.51594791,113670.0,113660.0,1e-08]
[1760282521208,5.51594791,113670.0,113660.0,0.00792534]
[1760282521419,5.51594791,113670.0,113660.0,1e-08]
[1760282521633,0.17599436,113640.0,113630.0,0.07162362]
[1760282521842,0.21184436,113640.0,113630.0,0.07177307]
[1760282522049,0.21184436,113640.0,113630.0,0.00014945]
[1760282522260,0.22063725,113660.0,113630.0,0.1761593]
[1760282522473,0.22063725,113660.0,113640.0,0.17599436]
[1760282522891,0.17599436,113640.0,113630.0,0.00014945]
[1760282523314,0.17599436,113640.0,113630.0,0.1761593]
[1760282523525,0.17599436,113640.0,113630.0,0.00014945]
[1760282523953,0.1739828,113650.0,113630.0,0.00014945]
[1760282524170,0.1412628,113650.0,113630.0,0.1761593]
[1760282524387,0.17599436,113640.0,113630.0,0.1761593]
[1760282524601,0.17599436,113640.0,113630.0,0.00014945]
[1760282525076,0.20871436,113640.0,113630.0,0.00014945]
[1760282525533,0.54871436,113640.0,113630.0,0.00014945]
[1760282526417,5.54871436,113640.0,113630.0,0.00014945]
[1760282528169,5.67602534,113620.0,113610.0,1e-08]
[1760282528387,5.55184534,113620.0,113610.0,1e-08]
[1760282528603,5.58460534,113620.0,113610.0,1e-08]
[1760282529031,5.58460534,113620.0,113610.0,0.00681915]
[1760282529695,0.37582,113620.0,113610.0,0.18285999]
[1760282529917,0.03582,113620.0,113610.0,0.18285999]
[1760282530352,0.21757725,113660.0,113640.0,0.17599425]